Cogmind - Beta 14 @@@ ROGUE MODE // 2024.08.09 @ 19:38:38 Player: Some Pennies Result: Destroyed by TB-L7I(R) with Subdweller Machine Gun Performance ------------- Evolutions (0) 0 Regions Visited (2) 400 Robots Destroyed (36) 180 Value Destroyed (900) 900 Prototype IDs (0) 0 Alien Tech Used (0) 0 Bonus (-22) -22 TOTAL SCORE: 1458 Bonus ------- Friendly Fire -22 Cogmind --------- Core Integrity 0/250 Matter 290/300 Energy 176/250 System Corruption 0% Temperature Cool (0) Movement Treading (560) Ox5 Location -10/Subcaves Parts ------- > --- POWER (1) -------- Ion Engine > --- PROPULSION (2) --- Light Treads Light Treads > --- UTILITY (2) ------ Humpback > --- WEAPON (2) ------- Riot Gun Subdweller Laser > --- INVENTORY (35) --- Carbon-fiber Leg Improved Heat Sink Disposable Heat Sink Disposable Heat Sink Medium Storage Unit Subdweller Optics Seismic Detector Armor Integrity Analyzer ECM Suite Scrap Shield Assault Rifle Light Assault Rifle Subdweller Machine Gun Subdweller Machine Gun Subdweller Machine Gun Battle Cannon Subdweller Shrapnel Launcher Plasma Cutter Scrap Shield Fragment (40) Peak State ------------ > --- POWER ------------ Ion Engine > --- PROPULSION ------- Light Treads Light Treads > --- UTILITY ---------- Humpback > --- WEAPON ----------- Subdweller Laser Subdweller Laser > --- INVENTORY -------- Light Treads Improved Heat Sink Disposable Heat Sink Disposable Heat Sink Medium Storage Unit Subdweller Optics Seismic Detector Armor Integrity Analyzer ECM Suite Scrap Shield Riot Gun Assault Rifle Light Assault Rifle Subdweller Machine Gun Subdweller Machine Gun Subdweller Machine Gun Battle Cannon Subdweller Shrapnel Launcher Plasma Cutter Scrap Shield Fragment [Rating: 13] Favorites ----------- Power Ion Engine Engine Ion Engine Propulsion Light Treads Treads Light Treads Wheel Wheel Utility Humpback Device Seismic Detector Storage Humpback Processor Improved Targeting Computer Protection Light Armor Plating Weapon Subdweller Laser Energy Gun Subdweller Laser Ballistic Gun Subdweller Machine Gun Build | -11 -10 -10 ------- Run | Yrd Mat Sub Slots Evolved . | . . . Power . | . . . Propulsion . | . . . Utility . | . . . Weapon . | . . . Parts Attached 35 | 9 19 7 Power 6 | 1 3 2 Engine 6 | 1 3 2 Core . | . . . Reactor . | . . . Propulsion 7 | 3 3 1 Treads 6 | 2 3 1 Leg . | . . . Wheel 1 | 1 . . Hover . | . . . Flight . | . . . Utility 8 | 2 5 1 Device 2 | 1 1 . Storage 3 | 1 1 1 Processor 2 | . 2 . Hackware . | . . . Protection 1 | . 1 . Artifact . | . . . Weapon 14 | 3 8 3 Energy Gun 10 | 2 6 2 Energy Cannon . | . . . Ballistic Gun 4 | 1 2 1 Ballistic Cannon . | . . . Launcher . | . . . Special Weapon . | . . . Impact Weapon . | . . . Slashing Weapon . | . . . Piercing Weapon . | . . . Special Melee Weapon . | . . . Unidentified Prototypes . | . . . Parts Lost 5 | . . 5 Power 2 | . . 2 Propulsion 1 | . . 1 Utility 1 | . . 1 Weapon 1 | . . 1 Highest Loss Streak 1 | . . 1 To Critical Strikes . | . . . Average Slot Usage (%) 90 | . 99 85 Engine 13 | . 14 13 Treads 26 | . 24 27 Wheel 1 | . 3 . Storage 14 | . 14 14 Processor 3 | . 10 . Protection 1 | . 2 1 Energy Gun 15 | . 11 18 Ballistic Gun 12 | . 16 9 Peak Build Rating 13 | 7 11 13 Average Rating 10 | 4 9 11 On Entrance 5 | . 7 9 Naked Turns . | . . . Heaviest Build 213 | 11 24 213 Greatest Support 40 | 40 40 40 Greatest Overweight (x) 5 | 1 1 5 Average Overweight (x) 1 | . . 3 Largest Inventory Capacity 35 | 8 10 35 Average Capacity 24 | 7 9 32 Most Carried 22 | 4 10 22 Average Carried 14 | 3 9 18 Final Capacity 35 | 8 10 35 Final Carried 20 | 4 10 20 Class Distribution -------------------- 57% | Hauler-Mutant 41% | Mutant Dominant Class ---------------- Mutant | -10/Materials Hauler-Mutant | -10/Subcaves Resources | -11 -10 -10 ----------- Run | Yrd Mat Sub Matter Collected 757 | 291 367 99 Remotely . | . . . Salvage Created 1156 | 125 689 342 Parts 70 | 9 42 19 Haulers Intercepted 1 | . 1 . Recyclers Shooed 1 | . 1 . Parts Field Recycled . | . . . Retrieved Matter . | . . . Parts Self-Destructed 25 | . . 25 Prevented . | . . . Kills | -11 -10 -10 ------- Run | Yrd Mat Sub Combat Hostiles Destroyed 22 | . 13 9 Guns 22 | . 13 9 Classes Destroyed 11 | 2 6 3 Worker 3 | . 3 . Builder 1 | . 1 . Tunneler 3 | 3 . . Hauler 1 | . 1 . Recycler 1 | 1 . . Turret 2 | . . 2 Watcher 3 | . 3 . Swarmer 3 | . . 3 Grunt 11 | . 11 . Sentry 1 | . . 1 Subdweller 7 | . 2 5 Best Kill Streak 5 | 3 5 5 Combat Bots Only 4 | . 3 4 Max Kills in Single Turn 2 | 1 1 2 Gunslinging . | . . . Exploded . | . . . Melee . | . . . Uniques/NPCs Destroyed . | . . . Combat | -11 -10 -10 -------- Run | Yrd Mat Sub Hostile Shots Fired 141 | . 41 100 Missed 51 | . 9 42 Damage Taken 1231 | . 428 803 Core 272 | . 88 184 Absorbed by Shields . | . . . Regen/Repaired (Parts) 65 | . 65 . Core Remaining (%) 100 | 100 . . Volleys Fired 98 | 11 54 33 Largest 2 | 2 2 2 Hottest 130 | 60 130 120 Shots Fired 195 | 22 108 65 Gun 195 | 22 108 65 Cannon . | . . . Launcher . | . . . Special . | . . . Kinetic 117 | 11 85 21 Thermal 77 | 11 23 43 Explosive . | . . . Electromagnetic 1 | . . 1 Robot Hit Streak 11 | 9 11 9 Robot Miss Streak 17 | 2 17 5 Penetration Max . | . . . Secondary Targets 4 | . . 4 Max Gunslinging Chain 1 | . . 1 Shots Hit Robots 134 | 16 78 40 Core Hits 65 | 6 45 14 Critical Kills 1 | . . 1 Critical Parts Destroyed 2 | . 2 . Critical Strikes 3 | . 2 1 Destroy 3 | . 2 1 Melee Attacks . | . . . Impact . | . . . Slashing . | . . . Piercing . | . . . Sneak Attacks . | . . . Combat Hostiles . | . . . Follow-up Attacks . | . . . Damage Inflicted 1806 | 152 937 717 Guns 1805 | 152 936 717 Cannons . | . . . Explosions . | . . . Melee . | . . . Ramming 1 | . 1 . Kinetic 931 | 51 666 214 Thermal 854 | 101 270 483 Explosive . | . . . Electromagnetic 20 | . . 20 Impact . | . . . Slashing . | . . . Piercing . | . . . Highest Corruption . | . . . Average Corruption . | . . . Corruption Purged . | . . . Corruption Blocked . | . . . Overload Shots . | . . . Overflow Damage . | . . . Projectiles . | . . . Explosions . | . . . Melee . | . . . Knockbacks . | . . . Impact . | . . . Kinetic . | . . . Secondary . | . . . Self-Inflicted Damage . | . . . Shots . | . . . Rammed 2 | . 2 . Targets Rammed 2 | . 2 . Kicked . | . . . Crushed . | . . . Highest Temperature 326 | 20 326 15 Average Temperature 73 | 8 106 6 Received Heat Transfer 351 | . 207 144 Effects 4 | . 4 . Interference 3 | . 3 . Damage (minor) 1 | . 1 . Siege Activations . | . . . Robots Corrupted . | . . . Combat Hostiles . | . . . Parts Fried . | . . . Impact Corruptions . | . . . Robots Melted . | . . . Combat Hostiles . | . . . Parts Melted 3 | 1 . 2 Heat Transferred 1160 | 225 335 600 Parts Sabotaged . | . . . Parts Stolen . | . . . Parts Stripped . | . . . Power Chain Reactions . | . . . Alert | -11 -10 -10 ------- Run | Yrd Mat Sub Peak Influence 270 | 20 270 . Initial 13 | . 13 . Average 111 | 7 120 . Maximum Alert Level 1 | . 1 . Low Security (%) 75 | 100 73 . Level 1 24 | . 26 . Level 2 . | . . . Level 3 . | . . . Level 4 . | . . . Level 5 . | . . . High Security . | . . . Max Security . | . . . Squads Dispatched 2 | . 2 . Investigation 2 | . 2 . Extermination . | . . . Reinforcement . | . . . Assault . | . . . Garrison . | . . . Intercept . | . . . Searches Triggered . | . . . Construction Impeded . | . . . Haulers Reinforced . | . . . Active Scanning Responses . | . . . Cargo Convoy Interrupts . | . . . Stealth | -11 -10 -10 --------- Run | Yrd Mat Sub Distress Signals 2 | . 2 . Communications Jammed . | . . . Distress Signals . | . . . Times Spotted 40 | . 21 19 Peak Tracking Total 6 | . 3 6 Tactical Retreats 4 | . 2 2 Traps | -11 -10 -10 ------- Run | Yrd Mat Sub Traps Triggered 2 | . . 2 Indirectly . | . . . Trap Hack Attempts . | . . . Triggered . | . . . Disarmed . | . . . Reprogrammed . | . . . Reused . | . . . Traps Extracted . | . . . Installed . | . . . Triggered . | . . . Machines | -11 -10 -10 ---------- Run | Yrd Mat Sub Machines Disabled . | . . . Max in Single Turn . | . . . Machines Repaired . | . . . Machines Dismantled . | . . . Machines Sabotaged . | . . . Overloaded Fab Kills . | . . . Hacking | -11 -10 -10 --------- Run | Yrd Mat Sub Machines Accessed 8 | . 8 . Terminals 5 | . 5 . Fabricators . | . . . Repair Stations 1 | . 1 . Recycling Units 2 | . 2 . Scanalyzers . | . . . Garrison Access . | . . . Total Hacks 28 | . 28 . Successful 17 | . 17 . Failed 10 | . 10 . Catastrophic 1 | . 1 . Database Lockouts 1 | . 1 . Manual 18 | . 18 . Terminals 21 | . 21 . Fabricators . | . . . Repair Stations 2 | . 2 . Recycling Units 5 | . 5 . Scanalyzers . | . . . Garrison Access . | . . . Terminal Hacks 3 | . 3 . Robot Analysis 1 | . 1 . Locate Traps 1 | . 1 . Zone Layout 1 | . 1 . Fabricator Hacks . | . . . Repair Station Hacks 2 | . 2 . Scan Component 1 | . 1 . Repair 1 | . 1 . Recycling Unit Hacks 2 | . 2 . Retrieve Components 2 | . 2 . Scanalyzer . | . . . Garrison Access Hacks . | . . . Unauthorized Hacks 10 | . 10 . Terminals 8 | . 8 . Botnet 3 | . 3 . Skim 5 | . 5 . Fabricators . | . . . Repair Stations . | . . . Recycling Units 2 | . 2 . Tunnel 2 | . 2 . Scanalyzers . | . . . Garrison Access . | . . . Data Cores Recovered . | . . . Used . | . . . Hacking Detections 5 | . 5 . Full Trace Events . | . . . Feedback Events . | . . . Feedback Blocked . | . . . Robot Schematics Acquired . | . . . Robots Built . | . . . Authchips . | . . . Time . | . . . Total Robot Build Rating . | . . . Part Schematics Acquired . | . . . Parts Built . | . . . Authchips . | . . . Time . | . . . Total Part Build Rating . | . . . Parts Repaired 1 | . 1 . Time 26 | . 26 . Parts Recycled . | . . . Recycled Matter . | . . . Retrieved Matter . | . . . Retrieved Components 12 | . 12 . Parts Scanalyzed . | . . . Part Schematics Acquired . | . . . Parts Damaged . | . . . Bothacking | -11 -10 -10 ------------ Run | Yrd Mat Sub Used RIF Installer . | . . . Robots Hacked . | . . . Non-combat . | . . . Combat . | . . . Robot Hacks Applied . | . . . Relay Couplers Released . | . . . Fabnet Peak Effective % . | . . . Robots Rewired . | . . . Allies Hacked . | . . . Hacks Repelled . | . . . Allies | -11 -10 -10 -------- Run | Yrd Mat Sub Total Allies . | . . . Largest Group . | . . . Highest-Rated Group . | . . . Highest-Rated Ally . | . . . Total Orders . | . . . Ally Attacks . | . . . Total Damage . | . . . Kills . | . . . Allies Corrupted . | . . . Allies Melted . | . . . Intel | -11 -10 -10 ------- Run | Yrd Mat Sub Robot Analysis Total 1 | . 1 . Derelict Logs Recovered 1 | . . 1 Drone Launches . | . . . Drone Recoveries . | . . . Exploration | -11 -10 -10 ------------- Run | Yrd Mat Sub Turns Passed 4267 | 120 1485 2662 Spaces Moved 1331 | 90 709 532 Core 10 | 10 . . Treads 966 | 4 430 532 Legs . | . . . Wheels 355 | 76 279 . Hover . | . . . Flight . | . . . Fastest Speed 50 | 50 95 160 Average Speed 266 | 80 134 475 Slowest Speed 560 | 160 160 560 Overloaded Moves . | . . . Propulsion Burnouts . | . . . Robots Hopped . | . . . Cave-ins Triggered . | . . . Exploration Rate (%) 44 | 4 83 45 Regions Visited 2 Branch Regions 1 Pre-discovered Areas 5 | . 5 . Known Exits Taken 1 | . 1 . Unknown Exits Taken 1 | 1 . . Scrap Searched . | . . . Spaces Dug . | . . . Terrain Destroyed 1 | . . 1 Melee . | . . . Projectile 1 | . . 1 AOE . | . . . Terrain Rammed . | . . . Walls Destroyed . | . . . Machines Disabled . | . . . Actions | -11 -10 -10 --------- Run | Yrd Mat Sub Total 1856 | 113 1143 600 Wait 331 | . 326 5 Move 1329 | 89 708 532 Hop . | . . . Pick Up 38 | 3 16 19 Fast Attach 15 | 8 4 3 Attach 3 | . . 3 Detach 3 | 1 2 . Swap 17 | 1 15 1 Drop 20 | . 16 4 Fire 98 | 11 54 33 Melee . | . . . Ram . | . . . Kick . | . . . Crush 2 | . 2 . Escape Stasis . | . . . Rewire . | . . . Trap . | . . . Miscellaneous . | . . . Route ------- -11/Scrapyard -10/Materials (discovered 5 exits: *Mat x3 / *Min / *Sub) -10/Subcaves (discovered 1 exit: [*Rec]) History --------- Turn | Location | Event 7 | -11/Scrapyard | Discovered new exit (range 15) 121 | -11/Scrapyard | Entered Materials 297 | -10/Materials | Central database locked down 303 | -10/Materials | Build established: Mutant 472 | -10/Materials | Discovered new exit (range 5) 548 | -10/Materials | Repaired Lgt. Treads 721 | -10/Materials | Derelicts attacked the area 887 | -10/Materials | Discovered new exit (range 11) 1170 | -10/Materials | Learned location of Subcaves (-10) 1238 | -10/Materials | Learned Storage security intel 1345 | -10/Materials | Identified exit to Materials 1383 | -10/Materials | Identified exit to Subcaves 1409 | -10/Materials | Learned location of Mines (-9) 1444 | -10/Materials | Identified exit to Mines 1606 | -10/Materials | Entered Subcaves 1694 | -10/Subcaves | Learned 4 Materials zone layouts 1711 | -10/Subcaves | Ambushed by swarm of Subdwellers 1731 | -10/Subcaves | Core integrity fell below 50% 1775 | -10/Subcaves | Lost 3 allies 2135 | -10/Subcaves | Build established: Hauler-Mutant 3080 | -10/Subcaves | Shifting Twisted Machinery released Battle Cannon 3090 | -10/Subcaves | Shifting Twisted Machinery released Riot Gun 3447 | -10/Subcaves | Discovered new exit (range 16) 3961 | -10/Subcaves | Core integrity fell below 20% 4268 | -10/Subcaves | Destroyed by TB-L7I(R) with Subdweller Machine Gun Last Messages --------------- 03617_ Subatomizers dissect the Sub. Monowheel, destroying it. 03684_ Triggered Piercing Trap. 03684_ Spikes shoot up from the floor. 03684_ Critical hit (Impale). 03684_ Lgt. Treads destroyed. 03960_ Triggered Piercing Trap. 03960_ Spikes shoot up from the floor. 03960_ Critical hit (Impale). 04002_ Y-45 Defender destroyed. 04009_ Subatomizers dissect the Lgt. Armor Plating. 04010_ Hvy. Assault Rifle fries itself beyond repair. 04014_ Lgt. Treads fries itself beyond repair. 04016_ Acquired 10 matter. 04018_ Lgt. Armor Plating fries itself beyond repair. 04019_ Beam Rifle fries itself beyond repair. 04264_ Sub. Laser destroyed. Map ----- +----------------------------------------------------+ | ^ ????????????????????????????????? | | ^ #??????????????????????????????????? | | # ## ##??????????????????????????????????? | | #########????#???????????????????????????????????? | | ## ##???????????????????????????????????????????? | | #???????????????????????????????????????????? | | #???????????????????????????????????????????? | | #???????????????????????????????????????????? | | ^#???????????????????????????????????????????? | | # #???????????????????????????????????????????? | | ## ##??????????????????????????????????????????? | | # #??????????????????????????????????????????? | | ##??????????????????????????????????????????? | | ##???????????????????????????????????????????? | | #????????????????????????????????????????????? | | # #???????????????????????????????????????????? | | #?#???????????????????????????????????????????? | | ## ##????????????????????????????????????????????? | | #???????????????????####?????????????????????? | | ##????####???????????# ##?????# ?????????????? | | #?????# ##??????????# ##??# ??????????????? | | #????## ##????###### ## ??????????????? | | ###### ##??## """#???????????????? | | #### ""#???????????????? | | ## "" #???????????????? | | @ R #???????????????? | | ## ########## #??????????????? | | # ### #### ##????????????????????????????? | | # #?# ##??# ##?????????????????????????????? | | #?# #???## #??????????????????????????????? | | #?# ##????###??????????????????????????????? | | # #?###??????????????????????????????????????? | | #######??????????????????????????????????????????? | | ?????????????????????????????????????????????????? | | ?????????????????????????????????????????????????? | | ?????????????????????????????????????????????????? | | ?????????????????????????????????????????????????? | | ?????????????????????????????????????????????????? | | ?????????????????????????????????????????????????? | | ?????????????????????????????????????????????????? | | ?????????????????????????????????????????????????? | | ?????????????????????????????????????????????????? | | ?????????????????????????????????????????????????? | | ?????????????????????????????????????????????????? | | ?????????????????????????????????????????????????? | | ?????????????????????????????????????????????????? | | ?????????????????????????????????????????????????? | | | | | | | +----------------------------------------------------+ Best States ------------- Heat Dissipation 35 Energy Generation 10 Energy Capacity 250 Matter Stores 300 Matter Capacity 300 Sight Range 16 Terrain Scan Density 10 Armor Coverage 150 Evasion (%) 44 Targeting Accuracy 6 Recoil Reduction 2 Item Schematics ----------------- None Robot Schematics ------------------ None Fabricated ------------ Nothing Alien Tech Used ----------------- None Achievements -------------- None Challenges ------------ None Game ------ Seed AdvancedArcMicrothruster Manual? 0 Play Time 00:15:46 Cumulative 223.2 hours Start 2024.08.09 @ 19:23:43 End 2024.08.09 @ 19:38:38 Sessions 1 Manual Loads 0 Difficulty Rogue Special Mode None Game No. 187 Rogue 182 Adventurer 5 Explorer 0 Win Type - Total 4 Types 2/0/2/0/0/0/0/0/0 Lore% 59 Gallery% 78 Achievement% 62 Wizard Run 0 Options --------- Layout 2 ASCII 0 Keyboard 0 Movement Mouse Keybinds 0 Fullscreen 2 Font 24/Smallcaps Map View 50x44 Zoom Use 0% Tactical HUD 1 Map Filters NONE Filters NONE Steam 1 RUN: c196055a-d747-4a18-8d74-c8f884492fe4